[Event "*** Titled Tuesday Blitz"]
[Site "Chess.com"]
[Date "2020.11.10"]
[Round "5"]
[White "Jospem"]
[Black "Infernal_XaM"]
[Result "1-0"]
[WhiteElo "2924"]
[BlackElo "2829"]
[TimeControl "180+1"]
[EndTime "11:00:32 PST"]
[Termination "Jospem won by resignation"]

1. e4 {[%clk 0:02:57.6]} 1... e5 {[%clk 0:02:56.5]} 2. Nf3 {[%clk 0:02:57.5]}
2... Nc6 {[%clk 0:02:56.6]} 3. Bb5 {[%clk 0:02:57.9]} 3... Nge7 {[%clk
0:02:56.2]} 4. O-O {[%clk 0:02:54.2]} 4... a6 {[%clk 0:02:54.4]} 5. Ba4 {[%clk
0:02:53.3]} 5... g6 {[%clk 0:02:54.4]} 6. c3 {[%clk 0:02:53.2]} 6... Bg7 {[%clk
0:02:54.3]} 7. d4 {[%clk 0:02:52.8]} 7... exd4 {[%clk 0:02:53.6]} 8. cxd4 {[%clk
0:02:53.7]} 8... b5 {[%clk 0:02:54]} 9. Bb3 {[%clk 0:02:53.9]} 9... O-O {[%clk
0:02:52.9]} 10. a4 {[%clk 0:02:40.1]} 10... b4 {[%clk 0:02:52.9]} 11. Be3 {[%clk
0:02:13.2]} 11... Na5 {[%clk 0:02:25.8]} 12. Nbd2 {[%clk 0:02:08.2]} 12... d6
{[%clk 0:02:05.8]} 13. Rc1 {[%clk 0:01:49.7]} 13... Nxb3 {[%clk 0:02:03.9]} 14.
Qxb3 {[%clk 0:01:42.8]} 14... a5 {[%clk 0:02:03]} 15. d5 {[%clk 0:01:40.8]}
15... Bd7 {[%clk 0:01:34.9]} 16. Bd4 {[%clk 0:01:34.5]} 16... Bh6 {[%clk
0:01:14.2]} 17. Bf6 {[%clk 0:01:23]} 17... Re8 {[%clk 0:01:14]} 18. Qc2 {[%clk
0:01:07.3]} 18... Ra7 {[%clk 0:01:01.6]} 19. Nc4 {[%clk 0:01:06.3]} 19... Qb8
{[%clk 0:00:54.6]} 20. b3 {[%clk 0:01:02.5]} 20... c6 {[%clk 0:00:42.1]} 21. Ba1
{[%clk 0:00:57.2]} 21... Bg7 {[%clk 0:00:35.7]} 22. Bxg7 {[%clk 0:00:51.2]}
22... Kxg7 {[%clk 0:00:36.1]} 23. Qb2+ {[%clk 0:00:48.8]} 23... f6 {[%clk
0:00:33.6]} 24. dxc6 {[%clk 0:00:44]} 24... Bxc6 {[%clk 0:00:31.8]} 25. Rfd1
{[%clk 0:00:25]} 25... Rd8 {[%clk 0:00:31.4]} 26. Nd4 {[%clk 0:00:21.9]} 26...
Bd7 {[%clk 0:00:28.6]} 27. Nf3 {[%clk 0:00:07.3]} 27... Bc6 {[%clk 0:00:28.5]}
28. Ng5 {[%clk 0:00:07.5]} 28... Rdd7 {[%clk 0:00:14.6]} 29. Ne6+ {[%clk
0:00:06.7]} 29... Kf7 {[%clk 0:00:15]} 30. Nd4 {[%clk 0:00:04.8]} 30... Bxe4
{[%clk 0:00:15.4]} 31. Nb5 {[%clk 0:00:05.2]} 31... Ra6 {[%clk 0:00:14.7]} 32.
Qd4 {[%clk 0:00:05.2]} 32... d5 {[%clk 0:00:14]} 33. Ne3 {[%clk 0:00:05]} 33...
Rc6 {[%clk 0:00:13]} 34. f3 {[%clk 0:00:04.8]} 34... Rxc1 {[%clk 0:00:13.1]} 35.
Rxc1 {[%clk 0:00:05.7]} 35... Bf5 {[%clk 0:00:13.5]} 36. Qh4 {[%clk 0:00:03.6]}
36... h5 {[%clk 0:00:13.3]} 37. Nd4 {[%clk 0:00:03.7]} 37... Bd3 {[%clk
0:00:12.2]} 38. Re1 {[%clk 0:00:01.7]} 38... Qe5 {[%clk 0:00:11.8]} 39. g4
{[%clk 0:00:01.5]} 39... Qg5 {[%clk 0:00:10.6]} 40. Qxg5 {[%clk 0:00:01.5]}
40... fxg5 {[%clk 0:00:10.7]} 41. Rc1 {[%clk 0:00:02.4]} 41... Ba6 {[%clk
0:00:10.4]} 42. Rc5 {[%clk 0:00:02.3]} 42... hxg4 {[%clk 0:00:10.3]} 43. Nxg4
{[%clk 0:00:01.9]} 43... Kg7 {[%clk 0:00:08.7]} 44. Rxa5 {[%clk 0:00:02.3]}
44... Rd6 {[%clk 0:00:09.2]} 45. Rc5 {[%clk 0:00:02.1]} 45... Nf5 {[%clk
0:00:09.4]} 46. Rc7+ {[%clk 0:00:02.6]} 46... Kf8 {[%clk 0:00:09.5]} 47. Nc6
{[%clk 0:00:02.9]} 47... d4 {[%clk 0:00:09]} 48. Nge5 {[%clk 0:00:03]} 48... d3
{[%clk 0:00:09]} 49. Rd7 {[%clk 0:00:03.5]} 49... Rxd7 {[%clk 0:00:08.9]} 50.
Nxd7+ {[%clk 0:00:04.4]} 50... Ke8 {[%clk 0:00:09.4]} 51. Nf6+ {[%clk
0:00:04.8]} 51... Kf7 {[%clk 0:00:09.1]} 52. Ne4 {[%clk 0:00:05.7]} 52... Bb7
{[%clk 0:00:08.7]} 53. Ne5+ {[%clk 0:00:05.7]} 53... Ke6 {[%clk 0:00:08.8]} 54.
Nxd3 {[%clk 0:00:06.6]} 54... Nd4 {[%clk 0:00:07.9]} 55. Ndc5+ {[%clk
0:00:06.5]} 55... Ke5 {[%clk 0:00:08.8]} 56. Nxb7 {[%clk 0:00:07.4]} 56... Nxf3+
{[%clk 0:00:08.6]} 57. Kh1 {[%clk 0:00:06.2]} 57... Kxe4 {[%clk 0:00:09.5]} 58.
a5 {[%clk 0:00:06.8]} 58... Nd4 {[%clk 0:00:09.6]} 59. a6 {[%clk 0:00:05.9]}
59... Nc6 {[%clk 0:00:09.8]} 60. Nc5+ {[%clk 0:00:04.9]} 60... Kd4 {[%clk
0:00:10]} 61. Ne6+ {[%clk 0:00:04.8]} 61... Kc3 {[%clk 0:00:10.5]} 62. Kg2
{[%clk 0:00:04.8]} 62... Kxb3 {[%clk 0:00:10.9]} 63. Nd4+ {[%clk 0:00:05]} 63...
Kc3 {[%clk 0:00:06.6]} 64. Nxc6 {[%clk 0:00:04.6]} 64... b3 {[%clk 0:00:07.2]}
65. a7 {[%clk 0:00:03.4]} 65... b2 {[%clk 0:00:07.7]} 66. a8=Q {[%clk
0:00:04.3]} 66... b1=Q {[%clk 0:00:08.2]} 67. Qh8+ {[%clk 0:00:05]} 67... Kc4
{[%clk 0:00:07.8]} 68. Qd4+ {[%clk 0:00:04.7]} 68... Kb5 {[%clk 0:00:08.2]} 69.
Ne5 {[%clk 0:00:02.9]} 69... Qc2+ {[%clk 0:00:07.7]} 70. Kg3 {[%clk 0:00:02.7]}
70... Qf5 {[%clk 0:00:08.1]} 71. Qd3+ {[%clk 0:00:02.7]} 71... Kc5 {[%clk
0:00:08.3]} 72. Qxf5 {[%clk 0:00:02.5]} 72... gxf5 {[%clk 0:00:09.2]} 73. Nf3
{[%clk 0:00:03.4]} 73... g4 {[%clk 0:00:08.4]} 74. Nh4 {[%clk 0:00:03.7]} 74...
f4+ {[%clk 0:00:08.6]} 75. Kxf4 {[%clk 0:00:03.6]} 75... Kd4 {[%clk 0:00:09.5]}
76. Kg3 {[%clk 0:00:04.5]} 76... Ke4 {[%clk 0:00:09.6]} 77. Kxg4 {[%clk
0:00:05.4]} 1-0

[Event "*** Titled Tuesday Blitz"]
[Site "Chess.com"]
[Date "2020.11.10"]
[Round "5"]
[White "Fins0905"]
[Black "Supernotar"]
[Result "1-0"]
[WhiteElo "2637"]
[BlackElo "2846"]
[TimeControl "180+1"]
[EndTime "11:00:57 PST"]
[Termination "Fins0905 won by checkmate"]

1. Nf3 {[%clk 0:03:00.9]} 1... c5 {[%clk 0:02:58.8]} 2. c3 {[%clk 0:02:58.8]}
2... Nf6 {[%clk 0:02:53.8]} 3. d4 {[%clk 0:02:58.8]} 3... e6 {[%clk 0:02:50.6]}
4. Bg5 {[%clk 0:02:54.9]} 4... d5 {[%clk 0:02:36.4]} 5. e3 {[%clk 0:02:52.8]}
5... Be7 {[%clk 0:02:34.3]} 6. Nbd2 {[%clk 0:02:47.9]} 6... O-O {[%clk
0:02:33.9]} 7. Bd3 {[%clk 0:02:43.9]} 7... b6 {[%clk 0:02:29.7]} 8. Qe2 {[%clk
0:02:42.5]} 8... a5 {[%clk 0:02:29]} 9. O-O {[%clk 0:02:37.9]} 9... Ba6 {[%clk
0:02:28.2]} 10. Bxa6 {[%clk 0:02:31.5]} 10... Nxa6 {[%clk 0:02:28.3]} 11. Ne5
{[%clk 0:02:32]} 11... Qc7 {[%clk 0:02:10.7]} 12. f4 {[%clk 0:02:24.8]} 12...
Ne8 {[%clk 0:02:03.7]} 13. Bxe7 {[%clk 0:02:15.3]} 13... Qxe7 {[%clk 0:02:04.6]}
14. f5 {[%clk 0:01:57.6]} 14... exf5 {[%clk 0:02:00.9]} 15. Rxf5 {[%clk
0:01:56.3]} 15... Nd6 {[%clk 0:02:00.8]} 16. Rf2 {[%clk 0:01:31.6]} 16... f6
{[%clk 0:02:00.4]} 17. Nd3 {[%clk 0:01:31.1]} 17... Rfe8 {[%clk 0:01:56.2]} 18.
Re1 {[%clk 0:01:20.5]} 18... c4 {[%clk 0:01:50.8]} 19. Nf4 {[%clk 0:01:18.7]}
19... Nc7 {[%clk 0:01:51]} 20. Qg4 {[%clk 0:01:08.6]} 20... Rad8 {[%clk
0:01:41.5]} 21. Nh5 {[%clk 0:01:00.6]} 21... Kh8 {[%clk 0:01:40.6]} 22. h3
{[%clk 0:00:47.3]} 22... b5 {[%clk 0:01:37]} 23. Ree2 {[%clk 0:00:38.6]} 23...
b4 {[%clk 0:01:36.7]} 24. Ng3 {[%clk 0:00:25]} 24... bxc3 {[%clk 0:01:31.8]} 25.
bxc3 {[%clk 0:00:25.9]} 25... Ncb5 {[%clk 0:01:28.7]} 26. Nb1 {[%clk 0:00:23.5]}
26... Rb8 {[%clk 0:01:20.3]} 27. Kh2 {[%clk 0:00:17.4]} 27... Nc7 {[%clk
0:01:00]} 28. Nd2 {[%clk 0:00:16]} 28... Ncb5 {[%clk 0:00:59.7]} 29. Nb1 {[%clk
0:00:15.2]} 29... a4 {[%clk 0:00:58.7]} 30. Nh5 {[%clk 0:00:13.7]} 30... Ne4
{[%clk 0:00:55.4]} 31. Rf5 {[%clk 0:00:09]} 31... Nbxc3 {[%clk 0:00:53.9]} 32.
Nxc3 {[%clk 0:00:09.9]} 32... Nxc3 {[%clk 0:00:54.5]} 33. Ref2 {[%clk
0:00:10.4]} 33... Ne4 {[%clk 0:00:50]} 34. Rf1 {[%clk 0:00:09.8]} 34... Red8
{[%clk 0:00:36.5]} 35. Nf4 {[%clk 0:00:07.2]} 35... Qc7 {[%clk 0:00:30.6]} 36.
Kg1 {[%clk 0:00:06.3]} 36... Qc6 {[%clk 0:00:24.6]} 37. Rh5 {[%clk 0:00:05.7]}
37... Qe8 {[%clk 0:00:13.6]} 38. Qh4 {[%clk 0:00:03.9]} 38... h6 {[%clk
0:00:11.4]} 39. Rxh6+ {[%clk 0:00:04.3]} 39... gxh6 {[%clk 0:00:10.6]} 40. Qxh6+
{[%clk 0:00:05.2]} 40... Kg8 {[%clk 0:00:11.2]} 41. Nh5 {[%clk 0:00:05.8]} 41...
Qf7 {[%clk 0:00:08.4]} 42. Rxf6 {[%clk 0:00:05.7]} 42... Qh7 {[%clk 0:00:05.8]}
43. Rg6+ {[%clk 0:00:05.1]} 43... Kh8 {[%clk 0:00:06.3]} 44. Qf4 {[%clk
0:00:02.3]} 44... Qxg6 {[%clk 0:00:05.9]} 45. Qe5+ {[%clk 0:00:02.4]} 45... Kh7
{[%clk 0:00:06.5]} 46. Nf4 {[%clk 0:00:02.8]} 46... Qf6 {[%clk 0:00:06.3]} 47.
Qh5+ {[%clk 0:00:02.3]} 47... Kg8 {[%clk 0:00:06.7]} 48. Qg4+ {[%clk 0:00:02.3]}
48... Qg7 {[%clk 0:00:06.6]} 49. Qe6+ {[%clk 0:00:02]} 49... Qf7 {[%clk
0:00:06.9]} 50. Qg4+ {[%clk 0:00:01.6]} 50... Kf8 {[%clk 0:00:06.7]} 51. Qh4
{[%clk 0:00:02.1]} 51... Re8 {[%clk 0:00:05.7]} 52. Kh2 {[%clk 0:00:02.7]} 52...
Re6 {[%clk 0:00:04.8]} 53. Qh8+ {[%clk 0:00:02.7]} 53... Qg8 {[%clk 0:00:03.9]}
54. Qh5 {[%clk 0:00:03.3]} 54... Qf7 {[%clk 0:00:03.5]} 55. Qh8+ {[%clk
0:00:03.4]} 55... Qg8 {[%clk 0:00:03.7]} 56. Nxe6+ {[%clk 0:00:03.8]} 56... Kf7
{[%clk 0:00:03.6]} 57. Qe5 {[%clk 0:00:04.4]} 57... Qe8 {[%clk 0:00:02.4]} 58.
Qf5+ {[%clk 0:00:04.5]} 58... Ke7 {[%clk 0:00:02.9]} 59. Nf4 {[%clk 0:00:05]}
59... Qd7 {[%clk 0:00:02.9]} 60. Nxd5+ {[%clk 0:00:05.1]} 60... Kd6 {[%clk
0:00:02.5]} 61. Qxe4 {[%clk 0:00:05.4]} 61... Kc6 {[%clk 0:00:02.4]} 62. Nf4+
{[%clk 0:00:05.5]} 62... Kc7 {[%clk 0:00:02.6]} 63. d5 {[%clk 0:00:05.8]} 63...
Qd6 {[%clk 0:00:03]} 64. Qxc4+ {[%clk 0:00:06]} 64... Kd7 {[%clk 0:00:02.9]} 65.
Qxa4+ {[%clk 0:00:06.3]} 65... Ke7 {[%clk 0:00:02.9]} 66. Qe4+ {[%clk
0:00:06.9]} 66... Kd7 {[%clk 0:00:03.3]} 67. Qh7+ {[%clk 0:00:06.9]} 67... Kc8
{[%clk 0:00:03.5]} 68. Qg8+ {[%clk 0:00:07.2]} 68... Kb7 {[%clk 0:00:03.7]} 69.
Qe6 {[%clk 0:00:07.8]} 69... Rd8 {[%clk 0:00:03.1]} 70. Qxd6 {[%clk 0:00:07.8]}
70... Rxd6 {[%clk 0:00:04]} 71. e4 {[%clk 0:00:08.3]} 71... Ra6 {[%clk
0:00:04.5]} 72. h4 {[%clk 0:00:08.4]} 72... Kc7 {[%clk 0:00:05]} 73. h5 {[%clk
0:00:08.7]} 73... Kd6 {[%clk 0:00:05.4]} 74. h6 {[%clk 0:00:09]} 74... Ra7
{[%clk 0:00:05.9]} 75. g4 {[%clk 0:00:08.8]} 75... Ke5 {[%clk 0:00:06.2]} 76.
Kg3 {[%clk 0:00:08.8]} 76... Ra3+ {[%clk 0:00:05.8]} 77. Kh4 {[%clk 0:00:08.7]}
77... Kxf4 {[%clk 0:00:06.7]} 78. h7 {[%clk 0:00:08.7]} 78... Rxa2 {[%clk
0:00:07.2]} 79. Kh5 {[%clk 0:00:09.2]} 79... Rh2+ {[%clk 0:00:06.6]} 80. Kg6
{[%clk 0:00:09.5]} 80... Kxg4 {[%clk 0:00:05.1]} 81. Kg7 {[%clk 0:00:09.6]}
81... Re2 {[%clk 0:00:03.9]} 82. h8=Q {[%clk 0:00:09.5]} 82... Rxe4 {[%clk
0:00:04.1]} 83. Qd8 {[%clk 0:00:09.4]} 83... Kf4 {[%clk 0:00:04.1]} 84. d6
{[%clk 0:00:09.7]} 84... Ke5 {[%clk 0:00:04.2]} 85. Qe7+ {[%clk 0:00:09.8]}
85... Kd5 {[%clk 0:00:04.3]} 86. Qxe4+ {[%clk 0:00:10]} 86... Kxe4 {[%clk
0:00:04.6]} 87. d7 {[%clk 0:00:10.3]} 87... Kf3 {[%clk 0:00:05]} 88. d8=Q {[%clk
0:00:10.7]} 88... Kg2 {[%clk 0:00:05.9]} 89. Qd3 {[%clk 0:00:10.7]} 89... Kg1
{[%clk 0:00:06.8]} 90. Kf6 {[%clk 0:00:11]} 90... Kh1 {[%clk 0:00:07.7]} 91. Kf5
{[%clk 0:00:11.5]} 91... Kg1 {[%clk 0:00:08.6]} 92. Kf4 {[%clk 0:00:12]} 92...
Kh1 {[%clk 0:00:09.5]} 93. Qe2 {[%clk 0:00:12.1]} 93... Kg1 {[%clk 0:00:10.4]}
94. Kg3 {[%clk 0:00:12.5]} 94... Kh1 {[%clk 0:00:11.3]} 95. Qg2# {[%clk
0:00:12.9]} 1-0

[Event "*** Titled Tuesday Blitz"]
[Site "Chess.com"]
[Date "2020.11.10"]
[Round "5"]
[White "kuli4ik"]
[Black "vinniethepooh"]
[Result "1-0"]
[WhiteElo "2861"]
[BlackElo "2616"]
[TimeControl "180+1"]
[EndTime "11:01:07 PST"]
[Termination "kuli4ik won by resignation"]

1. d4 {[%clk 0:02:40.8]} 1... Nf6 {[%clk 0:02:58]} 2. Bg5 {[%clk 0:02:39.6]}
2... d5 {[%clk 0:02:56.4]} 3. Nf3 {[%clk 0:02:39.2]} 3... e6 {[%clk 0:02:52]} 4.
e3 {[%clk 0:02:38.8]} 4... Be7 {[%clk 0:02:49]} 5. c4 {[%clk 0:02:38.3]} 5... h6
{[%clk 0:02:49]} 6. Bf4 {[%clk 0:02:36.5]} 6... Ne4 {[%clk 0:02:46.9]} 7. Nbd2
{[%clk 0:02:35.5]} 7... c5 {[%clk 0:02:38.1]} 8. cxd5 {[%clk 0:02:34.4]} 8...
exd5 {[%clk 0:02:34.6]} 9. dxc5 {[%clk 0:02:33.2]} 9... Nxc5 {[%clk 0:02:21.5]}
10. Be2 {[%clk 0:02:28.6]} 10... O-O {[%clk 0:02:20.5]} 11. O-O {[%clk
0:02:28.2]} 11... Nc6 {[%clk 0:02:20.8]} 12. Rc1 {[%clk 0:02:27.5]} 12... Bf5
{[%clk 0:02:16.5]} 13. Nb3 {[%clk 0:02:26.6]} 13... Ne6 {[%clk 0:02:11.7]} 14.
Nfd4 {[%clk 0:02:17.3]} 14... Ncxd4 {[%clk 0:02:01.9]} 15. Nxd4 {[%clk
0:02:16.1]} 15... Nxd4 {[%clk 0:01:32.4]} 16. Qxd4 {[%clk 0:02:14.8]} 16... Bf6
{[%clk 0:01:33]} 17. Be5 {[%clk 0:02:13.4]} 17... Bxe5 {[%clk 0:01:20.6]} 18.
Qxe5 {[%clk 0:02:12.7]} 18... Be6 {[%clk 0:01:21.4]} 19. Qd4 {[%clk 0:02:07.5]}
19... b6 {[%clk 0:01:07.6]} 20. h3 {[%clk 0:02:02.3]} 20... Rc8 {[%clk
0:01:07.6]} 21. Ba6 {[%clk 0:02:00.4]} 21... Rc7 {[%clk 0:01:03.8]} 22. Qe5
{[%clk 0:01:56.1]} 22... Rc5 {[%clk 0:01:02.7]} 23. b4 {[%clk 0:01:52]} 23...
Rxc1 {[%clk 0:01:01.8]} 24. Rxc1 {[%clk 0:01:51.3]} 24... d4 {[%clk 0:00:53]}
25. exd4 {[%clk 0:01:47.1]} 25... Bxa2 {[%clk 0:00:51]} 26. Rc8 {[%clk
0:01:39.6]} 26... Qxc8 {[%clk 0:00:23.9]} 27. Bxc8 {[%clk 0:01:38.5]} 27... Rxc8
{[%clk 0:00:24.8]} 28. d5 {[%clk 0:01:38.5]} 28... Rd8 {[%clk 0:00:16.8]} 29. d6
{[%clk 0:01:37.4]} 29... Be6 {[%clk 0:00:15.8]} 30. f4 {[%clk 0:01:35.5]} 30...
g6 {[%clk 0:00:09.9]} 31. g4 {[%clk 0:01:35]} 31... Rd7 {[%clk 0:00:08.7]} 32.
f5 {[%clk 0:01:34.1]} 32... gxf5 {[%clk 0:00:09.6]} 33. gxf5 {[%clk 0:01:33.9]}
33... Bxf5 {[%clk 0:00:10.5]} 34. Qxf5 {[%clk 0:01:32.6]} 34... Rxd6 {[%clk
0:00:11.1]} 35. Qc8+ {[%clk 0:01:25.1]} 35... Kg7 {[%clk 0:00:10.8]} 36. Qc7
{[%clk 0:01:19.2]} 36... Rg6+ {[%clk 0:00:10.5]} 37. Kf2 {[%clk 0:01:18.7]}
37... a6 {[%clk 0:00:05.2]} 38. h4 {[%clk 0:01:15.3]} 38... h5 {[%clk
0:00:04.6]} 39. Qe5+ {[%clk 0:01:14.3]} 39... Kg8 {[%clk 0:00:04.1]} 40. Qxh5
{[%clk 0:01:13.2]} 40... b5 {[%clk 0:00:03]} 41. Qe5 {[%clk 0:01:11.8]} 41...
Re6 {[%clk 0:00:02.7]} 42. Qd4 {[%clk 0:01:10.4]} 42... Kh7 {[%clk 0:00:02.4]}
43. Kg3 {[%clk 0:01:09.2]} 43... Rg6+ {[%clk 0:00:01.5]} 44. Kf4 {[%clk
0:01:07.8]} 44... Rh6 {[%clk 0:00:02.4]} 45. Qd3+ {[%clk 0:01:06]} 45... Kg7
{[%clk 0:00:02.1]} 46. Qc3+ {[%clk 0:01:02.6]} 46... Kh7 {[%clk 0:00:02.2]} 47.
Kg4 {[%clk 0:00:59.4]} 47... Rg6+ {[%clk 0:00:02.4]} 48. Kf5 {[%clk 0:00:59.1]}
48... Rh6 {[%clk 0:00:03.3]} 49. Qd4 {[%clk 0:00:56.5]} 49... Rg6 {[%clk
0:00:03.1]} 50. h5 {[%clk 0:00:49.3]} 50... Re6 {[%clk 0:00:03.4]} 51. Qc3
{[%clk 0:00:40.5]} 51... Rh6 {[%clk 0:00:03.3]} 52. Kg5 {[%clk 0:00:36.6]} 52...
Re6 {[%clk 0:00:03.7]} 53. Qc5 {[%clk 0:00:34.7]} 53... Kg7 {[%clk 0:00:03.7]}
54. Qd4+ {[%clk 0:00:31.4]} 54... Kh7 {[%clk 0:00:03.8]} 55. Qd8 {[%clk
0:00:31.3]} 55... Kg7 {[%clk 0:00:03.7]} 56. Qc8 {[%clk 0:00:30.7]} 56... Re5+
{[%clk 0:00:03.7]} 57. Kg4 {[%clk 0:00:30.2]} 57... Re6 {[%clk 0:00:04.6]} 58.
Qb8 {[%clk 0:00:29.3]} 58... Rh6 {[%clk 0:00:04]} 59. Qe5+ {[%clk 0:00:27.3]}
59... Kh7 {[%clk 0:00:04.6]} 60. Qe4+ {[%clk 0:00:25]} 60... Kg7 {[%clk
0:00:04.9]} 61. Kg5 {[%clk 0:00:25.3]} 61... Re6 {[%clk 0:00:04.7]} 62. Qd4+
{[%clk 0:00:25.3]} 62... Kh7 {[%clk 0:00:04.7]} 63. Qd3+ {[%clk 0:00:24.7]}
63... Kg7 {[%clk 0:00:05]} 64. Qf5 {[%clk 0:00:22.6]} 64... Rh6 {[%clk
0:00:04.2]} 65. Qc8 {[%clk 0:00:17]} 65... Re6 {[%clk 0:00:04.4]} 66. Qd8 {[%clk
0:00:16.7]} 66... Re5+ {[%clk 0:00:04.6]} 67. Kg4 {[%clk 0:00:17]} 67... Re6
{[%clk 0:00:05.5]} 68. Qb8 {[%clk 0:00:16.6]} 68... Rh6 {[%clk 0:00:05.1]} 69.
Kg5 {[%clk 0:00:16.5]} 69... Re6 {[%clk 0:00:05.1]} 70. Qf4 {[%clk 0:00:15.9]}
70... Rh6 {[%clk 0:00:04.2]} 71. Qd4+ {[%clk 0:00:15]} 71... Kh7 {[%clk
0:00:04.7]} 72. Qd3+ {[%clk 0:00:15.2]} 72... Kg7 {[%clk 0:00:04.9]} 73. Qd8
{[%clk 0:00:15]} 73... Re6 {[%clk 0:00:04.2]} 74. Kf5 {[%clk 0:00:15.4]} 74...
Rh6 {[%clk 0:00:04.1]} 75. Qg5+ {[%clk 0:00:15.2]} 75... Kh7 {[%clk 0:00:04.6]}
76. Ke4 {[%clk 0:00:15.6]} 76... Re6+ {[%clk 0:00:04.5]} 77. Kd5 {[%clk
0:00:15.7]} 77... Rh6 {[%clk 0:00:04.2]} 78. Qf5+ {[%clk 0:00:15.7]} 78... Kg7
{[%clk 0:00:03.7]} 79. Qg4+ {[%clk 0:00:16.1]} 79... Kh7 {[%clk 0:00:04]} 80.
Ke5 {[%clk 0:00:16.9]} 80... Re6+ {[%clk 0:00:04.1]} 81. Qxe6 {[%clk 0:00:17.2]}
81... fxe6 {[%clk 0:00:04.5]} 82. Kxe6 {[%clk 0:00:18.1]} 82... Kh6 {[%clk
0:00:04.1]} 83. Kd5 {[%clk 0:00:17.9]} 83... Kxh5 {[%clk 0:00:03.8]} 84. Kc5
{[%clk 0:00:18.1]} 84... Kg6 {[%clk 0:00:04]} 85. Kb6 {[%clk 0:00:18.4]} 85...
Kf7 {[%clk 0:00:03.8]} 86. Kxa6 {[%clk 0:00:18.6]} 86... Ke6 {[%clk 0:00:04.1]}
87. Kxb5 {[%clk 0:00:19.5]} 1-0